bitfinex-derivatives/quotes_SOLF0:USTF0_20250731
["timestamp","ask_amount","ask_price","bid_price","bid_amount"]
[1753975516487,3.12,176.64,176.56,4.0396526]
[1753975516988,8.7819,176.64,176.58,5.6634]
[1753975517195,3.12,176.63,176.56,4.0396526]
[1753975517393,3.12,176.63,176.58,4.0396526]
[1753975517594,3.12,176.63,176.59,5.663]
[1753975518486,13.59,176.66,176.6,4.0396526]
[1753975518693,3.12,176.65,176.64,4.0396526]
[1753975518897,10.47,176.66,176.65,5.6614]
[1753975519097,13.59,176.66,176.65,5.6614]
[1753975519900,3.12,176.65,176.64,5.6615]
[1753975520094,10.47,176.66,176.58,4.0396526]
[1753975520297,10.47,176.66,176.65,5.6614]
[1753975520994,10.47,176.66,176.65,9.7010526]
[1753975521895,380.32,176.79,176.71,5.6593]
[1753975522195,384.3596526,176.79,176.71,9.6989526]
[1753975522392,3.12,176.75,176.71,9.6989526]
[1753975522790,3.12,176.76,176.67,4.0396526]
[1753975523189,3.12,176.72,176.64,4.0396526]
[1753975523398,3.12,176.7,176.62,4.0396526]
[1753975523899,3.12,176.66,176.57,33.81880866]
[1753975524098,3.12,176.66,176.59,4.0396526]
[1753975524295,3.12,176.66,176.61,4.0396526]
[1753975525387,3.12,176.66,176.63,5.6618]
[1753975525595,3.12,176.66,176.61,4.0396526]
[1753975526194,3.12,176.66,176.59,4.0396526]
[1753975526596,3.12,176.66,176.53,9.51763107]
[1753975526801,3.12,176.64,176.56,4.0396526]
[1753975527093,5.662,176.63,176.59,5.663]
[1753975527300,3.12,176.62,176.56,4.0396526]
[1753975528595,3.14,176.66,176.6,4.0396526]
[1753975528795,3.14,176.63,176.6,5.6627]
[1753975529197,3.14,176.61,176.6,5.6627]
[1753975530502,3.14,176.61,176.58,4.0396526]
[1753975530503,3.14,176.61,176.56,4.0396526]
[1753975530797,4.72289147,176.7,176.51,4.0396526]
[1753975530798,3.14,176.58,176.51,4.0396526]
[1753975530994,3.14,176.58,176.53,4.0396526]
[1753975531596,3.14,176.6,176.55,4.0396526]
[1753975532101,4.0396526,176.63,176.53,4.0396526]
[1753975532398,3.14,176.6,176.53,4.0396526]
[1753975532594,3.14,176.6,176.54,5.6647]
[1753975532802,3.14,176.58,176.52,4.0396526]
[1753975533700,9.7024526,176.61,176.54,4.0396526]
[1753975533896,3.14,176.6,176.54,4.0396526]
[1753975534698,3.14,176.6,176.56,5.664]
[1753975534895,3.14,176.58,176.52,4.0396526]
[1753975535292,3.14,176.58,176.55,5.6643]
[1753975535496,3.14,176.58,176.52,4.0396526]
[1753975535896,3.14,176.58,176.48,389.87763107]
[1753975536198,3.14,176.58,176.5,4.0396526]
[1753975536596,3.14,176.57,176.5,4.0396526]
[1753975537704,3.14,176.57,176.54,5.6647]
[1753975537907,3.14,176.57,176.52,4.0396526]
[1753975538297,3.14,176.6,176.54,4.0396526]
[1753975538696,3.14,176.64,176.56,4.0396526]
[1753975538898,3.14,176.64,176.58,4.0396526]
[1753975539401,3.14,176.64,176.51,9.51763107]
[1753975539705,3.14,176.64,176.59,4.0396526]
[1753975540103,3.14,176.64,176.61,5.6624]
[1753975540701,3.14,176.63,176.57,4.0396526]
[1753975541508,5.6621,176.63,176.59,5.6631]
[1753975541704,3.14,176.62,176.57,4.0396526]
[1753975541912,4.0396526,176.7,176.61,4.0396526]
[1753975542109,5.6601,176.69,176.63,4.0396526]
[1753975542309,5.6601,176.69,176.63,7.1896526]
[1753975542814,5.6601,176.69,176.63,9.73050783]
[1753975543401,387.20050783,176.73,176.55,122.4581389]
[1753975543402,380.62,176.73,176.66,3.15]
[1753975543604,4.72289147,176.78,176.67,9.73050783]
[1753975543899,3.14,176.74,176.7,5.6595]
[1753975544106,5.6582,176.75,176.7,3.15]
[1753975544303,3.14,176.72,176.7,3.15]
[1753975544507,3.14,176.72,176.7,8.8097]
[1753975544703,3.14,176.71,176.7,5.6597]
[1753975546304,5.6582,176.75,176.7,5.6597]
[1753975546508,3.14,176.72,176.71,5.6594]
[1753975546706,3.14,176.72,176.7,3.15]
[1753975547111,3.14,176.72,176.7,8.8095]
[1753975547306,3.14,176.72,176.69,6.58050783]
[1753975547509,6.58050783,176.79,176.69,6.58050783]
[1753975547712,3.14,176.82,176.73,6.58050783]
[1753975547906,3.14,176.8,176.73,6.58050783]
[1753975548116,387.18050783,176.83,176.73,12.23910783]
[1753975548117,5.6575,176.78,176.73,12.23910783]
[1753975548310,387.18050783,176.83,176.73,15.38910783]
[1753975548511,3.14,176.75,176.73,15.38910783]
[1753975548815,387.18050783,176.83,176.63,9.51763107]
[1753975548816,6.58050783,176.81,176.72,5.659]
[1753975549017,3.14,176.8,176.72,5.659]
[1753975549217,5.6577,176.77,176.72,5.659]
[1753975549413,3.14,176.76,176.73,5.6588]
[1753975549613,3.14,176.76,176.71,9.73050783]
[1753975550016,3.14,176.76,176.72,5.6591]
[1753975550611,3.14,176.75,176.72,5.6591]
[1753975550807,6.58050783,176.81,176.72,5.6591]
[1753975551011,3.14,176.73,176.72,5.6591]
[1753975551918,3.14,176.73,176.71,6.58050783]
[1753975552312,3.14,176.73,176.72,3.15]
[1753975552712,3.14,176.75,176.72,3.15]
[1753975552920,3.14,176.74,176.72,3.15]
[1753975553614,6.58050783,176.81,176.72,3.15]
[1753975553816,3.14,176.82,176.74,3.15]
[1753975554011,3.14,176.8,176.71,15.38970783]
[1753975554212,3.14,176.76,176.71,6.58050783]
[1753975554412,5.6577,176.77,176.72,3.15]
[1753975554609,3.14,176.75,176.72,3.15]
[1753975554816,3.14,176.75,176.73,8.8086]
[1753975555119,3.14,176.8,176.73,8.8086]
[1753975555318,3.14,176.76,176.72,8.809]
[1753975555720,3.14,176.76,176.72,3.15]
[1753975555913,3.14,176.75,176.73,5.6588]
[1753975556217,3.14,176.75,176.73,8.8088]
[1753975556719,3.14,176.74,176.73,8.8088]
[1753975560323,3.14,176.74,176.71,6.58050783]
[1753975560520,3.14,176.74,176.66,6.58050783]
[1753975560521,3.28,176.8,176.74,3.14]
[1753975560818,5.6554,176.84,176.79,5.6567]
[1753975561015,3.28,176.83,176.77,9.72050783]
[1753975561414,5.6557,176.83,176.79,5.6568]
[1753975561615,3.28,176.82,176.79,5.6568]
[1753975561813,3.28,176.83,176.81,3.14]
[1753975562123,3.28,176.83,176.82,5.6558]
[1753975564813,3.28,176.83,176.82,8.7958]
[1753975565318,3.28,176.83,176.82,5.6558]
[1753975566522,4.03040424,176.83,176.75,4.03040424]
[1753975566728,3.28,176.82,176.75,4.03040424]
[1753975568226,3.28,176.82,176.76,3.14]
[1753975568427,3.28,176.82,176.78,5.657]
[1753975568631,3.28,176.82,176.75,4.03040424]
[1753975569024,5.6564,176.81,176.77,5.6572]
[1753975569224,3.28,176.8,176.75,4.03040424]
[1753975569424,3.28,176.8,176.76,3.14]
[1753975569733,3.28,176.79,176.75,7.17040424]
[1753975570031,3.28,176.79,176.75,3.14]
[1753975570325,3.28,176.78,176.76,3.14]
[1753975571523,3.28,176.78,176.77,8.7975]
[1753975571722,4.03040424,176.83,176.77,3.14]
[1753975571923,3.28,176.78,176.77,3.14]
[1753975572118,3.28,176.78,176.77,5.6573]
[1753975572324,3.28,176.8,176.77,3.14]
[1753975572629,3.28,176.81,176.79,3.14]
[1753975573224,3.28,176.81,176.8,5.6566]
[1753975573523,3.28,176.81,176.79,3.14]
[1753975573722,3.28,176.78,176.76,5.6577]
[1753975573928,3.28,176.78,176.74,7.17040424]
[1753975574128,3.28,176.81,176.74,4.03040424]
[1753975574430,3.28,176.8,176.77,5.6572]
[1753975574827,4.03040424,176.82,176.76,5.6578]
[1753975575024,3.28,176.81,176.74,7.17040424]
[1753975576127,5.6567,176.8,176.77,5.6573]
[1753975576334,3.28,176.79,176.74,4.03040424]
[1753975576535,4.03040424,176.82,176.76,3.14]
[1753975576730,5.6566,176.8,176.77,5.6573]
[1753975576936,3.28,176.79,176.76,3.14]
[1753975577243,3.28,176.79,176.77,5.6573]
[1753975577437,3.28,176.79,176.72,4.03040424]
[1753975577732,4.03040424,176.78,176.71,3.14]
[1753975577933,3.28,176.76,176.74,5.6582]
[1753975578326,3.28,176.76,176.75,5.6582]
[1753975578932,3.28,176.76,176.74,5.6583]
[1753975579336,3.28,176.75,176.74,5.6583]
[1753975581036,3.28,176.75,176.74,8.7983]
[1753975581237,5.657,176.79,176.73,3.14]
[1753975581443,3.28,176.77,176.73,3.14]
[1753975581634,3.28,176.76,176.73,3.14]
[1753975581836,3.28,176.75,176.74,5.6582]
[1753975583340,11.3084,176.88,176.76,8.7977]
[1753975583341,4.03040424,176.82,176.76,8.7977]
[1753975583542,3.28,176.78,176.76,8.7977]
[1753975583735,3.28,176.77,176.73,3.14]
[1753975583930,3.28,176.77,176.7,4.03040424]
[1753975584136,4.03040424,176.8,176.72,4.03040424]
[1753975584431,3.28,176.77,176.74,3.14]
[1753975584632,3.28,176.82,176.76,3.14]
[1753975584937,4.03040424,176.83,176.76,3.14]
[1753975585139,3.28,176.82,176.76,3.14]
[1753975585341,3.28,176.8,176.77,5.6573]
[1753975585536,3.28,176.8,176.76,3.14]
[1753975585736,3.28,176.79,176.75,4.03040424]
[1753975585939,3.28,176.79,176.78,5.657]
[1753975588439,3.28,176.79,176.77,5.6574]
[1753975588440,3.25,176.79,176.77,5.6574]
[1753975588740,3.25,176.79,176.75,7.04040424]
[1753975588939,3.25,176.79,176.78,5.6572]
[1753975592150,3.25,176.84,176.78,3.01]
[1753975592445,7.98165827,176.88,176.81,7.04040424]
[1753975592637,3.25,176.84,176.82,3.01]
[1753975593047,3.25,176.83,176.82,3.01]
[1753975593550,3.25,176.83,176.82,8.6659]
[1753975593740,3.25,176.83,176.82,5.6559]
[1753975593942,5.6551,176.85,176.81,4.03040424]
[1753975594142,3.25,176.82,176.81,12.69650424]
[1753975595147,5.6551,176.85,176.81,12.69650424]
[1753975595443,3.25,176.83,176.81,7.04040424]
[1753975595648,3.25,176.82,176.81,7.04040424]
[1753975595852,3.25,176.82,176.79,4.03040424]
[1753975596555,3.25,176.86,176.8,3.01]
[1753975597048,3.25,176.84,176.81,3.01]
[1753975597453,8.9054,176.84,176.81,3.01]
[1753975597648,5.6554,176.84,176.81,3.01]
[1753975597846,3.25,176.82,176.81,3.01]
[1753975598052,3.25,176.85,176.81,5.6562]
[1753975598250,3.25,176.88,176.84,3.01]
[1753975598549,3.25,176.86,176.85,3.01]
[1753975598744,3.25,176.88,176.85,3.01]
[1753975598949,3.25,176.87,176.85,3.01]
[1753975599255,3.25,176.9,176.85,4.03040424]
[1753975599448,3.25,176.9,176.87,3.01]
[1753975599849,3.25,176.9,176.85,4.03040424]
[1753975600052,3.25,176.9,176.86,3.01]
[1753975600259,8.9035,176.9,176.86,8.6646]
[1753975600552,3.25,176.89,176.85,4.03040424]
[1753975600756,3.25,176.89,176.85,7.04040424]
[1753975600955,3.25,176.89,176.85,4.03040424]
[1753975601152,3.25,176.89,176.83,4.03040424]
[1753975601659,3.25,176.86,176.83,4.03040424]
[1753975601859,3.25,176.91,176.84,3.01]
[1753975602054,3.25,176.89,176.86,8.6644]
[1753975602256,3.25,176.88,176.86,8.6644]
[1753975602456,3.25,176.88,176.86,3.01]
[1753975602657,3.25,176.88,176.86,8.6646]
[1753975603359,3.25,176.88,176.87,8.6643]
[1753975603557,3.25,176.92,176.88,3.01]
[1753975604754,5.6532,176.91,176.88,3.01]
[1753975604955,3.25,176.89,176.88,3.01]
[1753975605361,3.25,176.89,176.88,8.664]
[1753975605562,3.25,176.94,176.88,3.01]
[1753975605863,8.9029,176.92,176.88,5.654]
[1753975606063,5.6529,176.92,176.88,3.01]
[1753975606258,3.25,176.9,176.89,3.01]
[1753975606764,3.25,176.9,176.88,3.01]
[1753975607057,3.25,176.9,176.88,8.6638]
[1753975607452,3.25,176.9,176.88,3.01]
[1753975607655,5.6532,176.91,176.88,3.01]
[1753975608053,3.25,176.89,176.88,3.01]
[1753975608252,3.25,176.89,176.88,8.664]
[1753975608456,3.25,176.89,176.88,3.01]
[1753975609255,3.25,176.9,176.87,4.03040424]
[1753975609465,3.25,176.9,176.89,3.01]
[1753975609664,3.25,176.94,176.87,7.04040424]
[1753975609858,3.25,176.91,176.88,3.01]
[1753975610553,5.6531,176.91,176.88,3.01]
[1753975610965,3.25,176.88,176.87,7.04040424]
[1753975611861,3.25,176.88,176.87,12.69470424]
[1753975612370,3.25,176.93,176.88,5.6538]
[1753975612662,3.25,176.93,176.88,8.6638]
[1753975612967,3.25,176.92,176.87,7.04040424]
[1753975613160,3.25,176.94,176.88,3.01]
[1753975613361,3.88680759,176.99,176.95,5.6514]
[1753975613564,3.25,176.98,176.96,4.03040424]
[1753975613857,7.13680759,176.99,176.97,3.01]
[1753975614054,3.25,176.98,176.96,4.03040424]
[1753975614264,3.25,176.97,176.96,4.03040424]
[1753975614563,3.25,176.97,176.94,4.03040424]
[1753975614958,3.25,176.96,176.94,7.04040424]
[1753975615159,3.25,176.95,176.94,7.04040424]
[1753975615564,3.25,176.95,176.94,4.03040424]
[1753975615866,4.03040424,176.95,176.88,7.04040424]
[1753975616066,3.25,176.94,176.9,5.6533]
[1753975616664,3.25,176.93,176.89,5.6536]
[1753975617372,3.25,176.93,176.9,5.6533]
[1753975617555,4.03040424,176.96,176.88,4.03040424]
[1753975617760,3.88680759,176.99,176.92,4.03040424]
[1753975617961,3.25,176.97,176.95,3.01]
[1753975618163,3.25,176.97,176.94,4.03040424]
[1753975618368,3.88680759,176.99,176.98,3.13]
[1753975618770,3.33,176.98,176.97,5.6509]
[1753975618967,3.88680759,176.99,176.95,3.13]
[1753975619167,3.33,176.97,176.95,3.13]
[1753975619362,3.33,176.97,176.96,5.6512]
[1753975620566,3.33,176.97,176.88,3.13]
[1753975620763,4.03040424,176.96,176.89,3.13]
[1753975620964,3.33,176.95,176.88,4.03040424]
[1753975621166,3.33,176.95,176.89,3.13]
[1753975621372,5.6516,176.95,176.89,3.13]
[1753975621773,5.6515,176.95,176.89,3.13]
[1753975622072,5.6515,176.95,176.91,3.13]
[1753975622370,3.33,176.92,176.9,3.13]
[1753975622570,3.33,176.92,176.9,8.7828]
[1753975622767,4.03040424,176.97,176.9,3.13]
[1753975622966,4.03040424,176.97,176.89,4.03040424]
[1753975623170,3.33,176.95,176.93,8.782]
[1753975623466,3.33,176.98,176.91,4.03040424]
[1753975623874,3.33,176.95,176.92,5.6523]
[1753975624066,3.33,176.95,176.89,4.03040424]
[1753975624266,8.9816,176.95,176.91,5.6527]
[1753975624462,3.33,176.94,176.91,5.6527]
[1753975624669,3.33,176.94,176.89,4.03040424]
[1753975624973,3.33,176.94,176.9,3.13]
[1753975625272,8.9818,176.94,176.9,8.7828]
[1753975625476,4.03040424,176.97,176.9,3.13]
[1753975625774,3.33,176.92,176.9,3.13]
[1753975626267,3.33,176.91,176.9,3.13]
[1753975627171,3.33,176.91,176.9,5.6529]
[1753975627776,4.03040424,176.97,176.89,9.68360424]
[1753975627968,3.33,176.9,176.89,9.68360424]
[1753975628173,3.33,176.92,176.89,7.16040424]
[1753975628372,3.33,176.91,176.9,5.6528]
[1753975631876,3.33,176.94,176.89,5.6533]
[1753975632082,4.03040424,176.93,176.89,5.6533]
[1753975632272,3.33,176.92,176.89,5.6533]
[1753975632469,3.33,176.92,176.85,3.13]
[1753975632866,5.6525,176.92,176.87,5.6537]
[1753975633074,3.33,176.91,176.85,3.13]
[1753975634876,3.33,176.91,176.88,5.6534]
[1753975635077,3.33,176.91,176.87,3.13]
[1753975635468,3.33,176.9,176.85,4.03040424]
[1753975635667,3.33,176.9,176.86,3.13]
[1753975635877,3.33,176.89,176.87,3.13]
[1753975636379,9.68260424,176.93,176.88,5.6535]
[1753975636679,9.68260424,176.93,176.87,3.13]
[1753975636873,5.6522,176.92,176.85,7.16040424]
[1753975637079,3.33,176.91,176.85,3.13]
[1753975638183,8.9826,176.91,176.87,5.6536]
[1753975638382,3.33,176.91,176.85,3.13]
[1753975638879,3.33,176.9,176.85,3.13]
[1753975639080,3.33,176.9,176.83,7.16040424]
[1753975639281,5.6531,176.9,176.83,7.16040424]
[1753975639482,3.33,176.89,176.83,7.16040424]
[1753975640680,3.33,176.88,176.83,7.16040424]
[1753975641182,3.33,176.88,176.84,3.13]
[1753975642177,3.33,176.88,176.83,4.03040424]
[1753975642378,3.33,176.88,176.83,7.16040424]
[1753975643181,3.33,176.88,176.83,12.81540424]
[1753975643375,3.33,176.88,176.83,7.16040424]
[1753975644581,5.6538,176.88,176.84,3.13]
[1753975644886,3.33,176.87,176.84,3.13]
[1753975645484,3.33,176.88,176.84,3.13]
[1753975645882,5.6537,176.88,176.84,3.13]
[1753975646185,3.33,176.91,176.84,3.13]
[1753975646483,3.33,176.9,176.85,4.03040424]
[1753975646675,3.33,176.9,176.83,7.16040424]
[1753975646875,4.03040424,176.89,176.83,3.13]
[1753975647082,4.03040424,176.87,176.79,4.03040424]
[1753975647280,3.33,176.86,176.79,7.16040424]
[1753975647486,3.33,176.86,176.79,4.03040424]
[1753975647680,3.33,176.86,176.8,3.13]
[1753975647881,3.33,176.86,176.82,3.13]
[1753975648085,3.33,176.86,176.82,8.7854]
[1753975648682,4.03040424,176.89,176.83,5.6552]
[1753975648981,3.04,176.88,176.82,3.13]
[1753975649186,8.6938,176.88,176.82,8.7855]
[1753975649389,3.04,176.87,176.82,5.6555]
[1753975649581,3.04,176.87,176.83,3.13]
[1753975649882,3.04,176.87,176.82,5.6555]
[1753975649883,8.6942,176.87,176.81,9.68620424]
[1753975650077,3.04,176.86,176.81,5.6558]
[1753975650280,3.04,176.86,176.81,8.7858]
[1753975650483,3.04,176.86,176.82,5.6555]
[1753975650681,3.04,176.86,176.82,8.7855]
[1753975651187,3.04,176.86,176.82,3.13]
[1753975651388,3.04,176.85,176.81,8.7858]
[1753975652584,4.03040424,176.83,176.76,4.03040424]
[1753975652784,3.04,176.82,176.75,3.13]
[1753975653089,3.04,176.81,176.77,8.787]
[1753975653290,3.04,176.81,176.77,3.13]
[1753975653984,3.04,176.82,176.75,3.13]
[1753975654190,3.04,176.82,176.77,5.657]
[1753975654385,3.04,176.82,176.78,3.13]
[1753975654585,3.04,176.82,176.75,3.13]
[1753975655790,3.04,176.82,176.77,5.657]
[1753975655990,3.04,176.82,176.78,3.13]
[1753975656288,3.04,176.82,176.77,8.787]
[1753975656491,3.04,176.81,176.77,8.787]
[1753975656691,3.04,176.81,176.77,3.13]
[1753975657282,3.04,176.8,176.75,3.13]
[1753975657794,3.04,176.8,176.76,3.13]
[1753975658295,3.04,176.8,176.77,3.13]
[1753975658795,3.04,176.79,176.77,3.13]
[1753975658987,3.04,176.82,176.78,3.13]
[1753975660687,3.04,176.87,176.81,3.13]
[1753975661085,4.03040424,176.92,176.84,4.03040424]
[1753975661289,3.04,176.91,176.85,8.7844]
[1753975661691,4.03040424,176.92,176.85,8.7844]
[1753975661692,3.04,176.89,176.85,8.7844]
[1753975661987,4.03040424,176.92,176.86,5.6542]
[1753975662191,3.04,176.96,176.87,3.13]
[1753975662393,3.04,176.94,176.87,3.13]
[1753975662592,8.6919,176.94,176.89,8.7833]
[1753975662796,3.04,176.93,176.89,8.7833]
[1753975662988,3.04,176.92,176.86,7.16040424]
[1753975663193,5.6527,176.91,176.86,12.81460424]
[1753975663499,3.04,176.9,176.86,12.81460424]
[1753975663900,5.653,176.9,176.86,4.03040424]
[1753975664095,3.04,176.89,176.82,4.03040424]
[1753975664395,5.6535,176.89,176.84,5.6547]
[1753975664601,3.04,176.88,176.84,8.7847]
[1753975665799,4.03040424,176.91,176.85,3.13]
[1753975666094,3.04,176.91,176.88,4.03040424]
[1753975666292,4.03040424,176.97,176.9,3.13]
[1753975666493,3.04,176.92,176.9,3.13]
[1753975666689,5.6523,176.93,176.88,7.16040424]
[1753975666891,3.04,176.91,176.89,3.13]
[1753975667294,3.04,176.91,176.89,8.7833]
[1753975667602,3.04,176.93,176.91,3.13]
[1753975668003,5.6517,176.95,176.89,5.6533]
[1753975668300,3.04,176.95,176.89,8.7833]
[1753975668502,3.04,176.92,176.88,3.13]
[1753975668705,3.04,176.95,176.88,3.13]
[1753975669105,3.04,176.93,176.89,3.13]
[1753975669498,5.6521,176.93,176.89,3.13]
[1753975669700,3.04,176.92,176.88,8.7835]
[1753975669895,3.04,176.92,176.85,7.16040424]
[1753975670399,3.04,176.9,176.86,8.7843]
[1753975671011,3.04,176.9,176.87,5.654]
[1753975671308,3.04,176.9,176.87,3.13]
[1753975671607,3.04,176.89,176.87,3.13]
[1753975671803,3.04,176.88,176.86,8.7841]
[1753975672003,5.6532,176.9,176.86,8.7841]
[1753975672004,3.04,176.87,176.86,8.7841]
[1753975672500,3.04,176.89,176.86,8.7841]
[1753975672706,3.04,176.88,176.86,8.7841]
[1753975672906,4.03040424,176.9,176.83,3.13]
[1753975673108,3.04,176.89,176.83,3.13]
[1753975673610,3.04,176.87,176.8,3.13]
[1753975673806,4.03040424,176.86,176.8,3.13]
[1753975674009,3.04,176.85,176.8,3.13]
[1753975674305,3.04,176.83,176.81,3.13]
[1753975674804,4.03040424,176.86,176.81,3.13]
[1753975675010,3.04,176.84,176.79,3.13]
[1753975675316,8.695,176.84,176.8,3.13]
[1753975675511,5.655,176.84,176.8,3.13]
[1753975675715,3.04,176.83,176.8,3.13]
[1753975675914,4.03040424,176.86,176.8,8.7862]
[1753975676111,3.04,176.85,176.8,8.7862]
[1753975676515,3.04,176.85,176.73,389.47763107]
[1753975676516,8.77753208,176.94,176.81,5.6559]
[1753975676711,3.04,176.86,176.81,8.7859]
[1753975677308,3.04,176.85,176.82,3.13]
[1753975677615,3.04,176.84,176.82,3.13]
[1753975677815,5.6547,176.85,176.82,3.13]
[1753975678009,4.03040424,176.87,176.8,5.6561]
[1753975678221,3.17,176.86,176.79,3.14]
[1753975678415,5.6553,176.84,176.79,3.14]
[1753975678618,5.6553,176.84,176.79,8.7965]
[1753975678619,3.17,176.83,176.79,8.7965]
[1753975679015,3.17,176.83,176.79,3.14]
[1753975679222,3.17,176.82,176.81,5.6559]
[1753975679823,7.20040424,176.85,176.81,5.6559]
[1753975680026,3.17,176.86,176.82,3.14]
[1753975680217,4.03040424,176.87,176.79,4.03040424]
[1753975680529,3.17,176.88,176.87,3.14]
[1753975680823,380.08,176.95,176.87,3.14]
[1753975681022,7.24989404,176.94,176.92,4.03040424]
[1753975681217,3.17,176.97,176.95,3.14]
[1753975681423,3.88680759,176.99,176.95,3.14]
[1753975681618,3.88680759,176.99,176.97,3.14]
[1753975681830,3.17,177.05,176.98,4.03040424]
[1753975682015,3.17,177.04,177.02,4.03040424]
[1753975682220,4.03040424,177.09,177.02,4.03040424]
[1753975682421,3.17,177.08,177.06,4.03040424]
[1753975682624,3.17,177.11,177.04,4.03040424]
[1753975682827,3.17,177.11,177.02,12.20011082]
[1753975682828,5.6472,177.09,177.02,12.20011082]
[1753975683030,3.17,177.08,177.01,6.55121082]
[1753975683417,8.8176,177.08,177.01,6.55121082]
[1753975683625,3.17,177.08,177.01,6.55121082]
[1753975684126,3.17,177.07,177.01,6.55121082]
[1753975684428,3.17,177.07,176.99,6.55121082]
[1753975684631,3.17,177.05,176.99,6.55121082]
[1753975684930,3.17,177.05,177.0,5.6498]
[1753975685525,3.17,177.03,176.91,33.68667907]
[1753975685830,3.17,177.03,176.97,6.55121082]
[1753975686024,3.17,177.03,176.99,5.6502]
[1753975686229,5.6483,177.05,176.99,5.6502]
[1753975686531,3.17,177.04,176.99,5.6502]
[1753975686921,3.17,177.04,176.96,6.55121082]
[1753975687522,3.17,177.04,176.96,12.20231082]
[1753975687723,3.17,177.04,176.96,6.55121082]
[1753975687931,3.17,177.04,176.97,5.6507]
[1753975688131,3.17,177.04,176.96,6.55121082]
[1753975688632,5.6492,177.02,176.97,5.6508]
[1753975688932,3.17,176.99,176.97,5.6508]
[1753975689430,3.17,176.99,176.96,5.6511]
[1753975689932,3.17,176.99,176.94,6.55121082]
[1753975690129,3.17,176.99,176.95,5.6512]
[1753975690326,6.55121082,177.06,176.94,6.55121082]
[1753975690327,3.17,177.05,176.94,6.55121082]
[1753975691134,3.17,177.05,176.96,5.6511]
[1753975692335,5.6493,177.02,176.96,5.6511]
[1753975692535,3.17,177.0,176.96,5.6511]
[1753975692736,3.17,176.99,176.96,5.6511]
[1753975693433,3.17,176.99,176.94,6.55121082]
[1753975693434,3.17,176.99,176.94,12.20271082]
[1753975693737,3.17,177.03,176.94,12.20271082]
[1753975694338,6.55121082,177.02,176.92,6.55121082]
[1753975694531,3.17,177.01,176.92,6.55121082]
[1753975695437,3.17,177.01,176.96,5.6511]
[1753975695938,3.17,177.03,176.97,5.6506]
[1753975696131,3.17,177.03,176.94,6.55121082]
[1753975696842,3.17,177.01,176.92,6.55121082]
[1753975697137,3.17,177.01,176.91,33.68667907]
[1753975697138,3.17,177.01,176.94,6.55121082]
[1753975698342,3.17,177.01,176.97,5.6508]
[1753975699337,3.17,177.03,176.97,5.6508]
[1753975699941,3.17,177.03,176.98,5.6505]
[1753975700134,3.17,177.03,176.94,6.55121082]
[1753975700332,3.17,177.03,176.96,6.55121082]
[1753975702244,3.17,177.03,176.98,5.6505]
[1753975703441,3.17,177.03,176.99,5.6502]